[Event "*** SCC Grand Prix: Titled Tuesday Blitz"]
[Site "Chess.com"]
[Date "2020.07.21"]
[Round "5"]
[White "Roza_Idrisova"]
[Black "Steven_Rojas"]
[Result "1/2-1/2"]
[WhiteElo "2251"]
[BlackElo "2390"]
[TimeControl "180+1"]
[EndTime "10:57:03 PDT"]
[Termination "Game drawn by stalemate"]

1. d4 {[%clk 0:03:00.9]} 1... d5 {[%clk 0:02:59.9]} 2. Nf3 {[%clk 0:03:00.6]}
2... Nf6 {[%clk 0:03:00.4]} 3. Bg5 {[%clk 0:03:00.1]} 3... Ne4 {[%clk
0:03:00.3]} 4. Bf4 {[%clk 0:02:59.8]} 4... c5 {[%clk 0:03:00.9]} 5. c3 {[%clk
0:02:59.5]} 5... Nc6 {[%clk 0:03:01.1]} 6. e3 {[%clk 0:02:57.1]} 6... e6 {[%clk
0:03:00]} 7. Nbd2 {[%clk 0:02:56.4]} 7... Bd6 {[%clk 0:03:00.2]} 8. Bg3 {[%clk
0:02:55.6]} 8... O-O {[%clk 0:02:59.8]} 9. Bd3 {[%clk 0:02:54.8]} 9... f5 {[%clk
0:03:00.3]} 10. Be5 {[%clk 0:02:51]} 10... Nxe5 {[%clk 0:02:25.2]} 11. dxe5
{[%clk 0:02:49.6]} 11... Bc7 {[%clk 0:02:18.6]} 12. c4 {[%clk 0:02:47.4]} 12...
g5 {[%clk 0:02:15.9]} 13. cxd5 {[%clk 0:02:45.7]} 13... exd5 {[%clk 0:02:14.3]}
14. Qc2 {[%clk 0:02:39.6]} 14... g4 {[%clk 0:02:11.8]} 15. Ng1 {[%clk
0:02:28.1]} 15... Bxe5 {[%clk 0:02:08.5]} 16. Bxe4 {[%clk 0:02:24.5]} 16... fxe4
{[%clk 0:02:02.3]} 17. Ne2 {[%clk 0:02:19.4]} 17... Qf6 {[%clk 0:01:53.4]} 18.
O-O {[%clk 0:02:14.9]} 18... Be6 {[%clk 0:01:33.9]} 19. g3 {[%clk 0:02:03.3]}
19... Rac8 {[%clk 0:01:25.8]} 20. Rab1 {[%clk 0:02:01.5]} 20... Qh6 {[%clk
0:01:11]} 21. Nf4 {[%clk 0:01:58.2]} 21... Bxf4 {[%clk 0:01:06.4]} 22. exf4
{[%clk 0:01:57.8]} 22... Rf5 {[%clk 0:01:05.5]} 23. Rfd1 {[%clk 0:01:57]} 23...
Rh5 {[%clk 0:00:56.6]} 24. Nf1 {[%clk 0:01:56.8]} 24... d4 {[%clk 0:00:57.2]}
25. Qxe4 {[%clk 0:01:49.1]} 25... Bd5 {[%clk 0:00:56.8]} 26. Qe7 {[%clk
0:01:43]} 26... Rc6 {[%clk 0:00:38.6]} 27. Qe8+ {[%clk 0:01:34.5]} 27... Kg7
{[%clk 0:00:38.9]} 28. Re1 {[%clk 0:01:34]} 28... Bf7 {[%clk 0:00:27.7]} 29. Qe7
{[%clk 0:01:24.3]} 29... Qd6 {[%clk 0:00:14.1]} 30. b3 {[%clk 0:01:15]} 30...
Qxe7 {[%clk 0:00:10.5]} 31. Rxe7 {[%clk 0:01:14.5]} 31... Rb6 {[%clk 0:00:08]}
32. Rc1 {[%clk 0:01:12.3]} 32... a5 {[%clk 0:00:06.8]} 33. Nd2 {[%clk
0:01:04.8]} 33... Kf8 {[%clk 0:00:05]} 34. Rc7 {[%clk 0:01:02]} 34... Rbh6
{[%clk 0:00:02.9]} 35. Nf1 {[%clk 0:01:00.2]} 35... b6 {[%clk 0:00:03.6]} 36.
Re1 {[%clk 0:00:57.9]} 36... Re6 {[%clk 0:00:02.8]} 37. Rxe6 {[%clk 0:00:55.2]}
37... Bxe6 {[%clk 0:00:03.7]} 38. Rc6 {[%clk 0:00:53.9]} 38... Ke7 {[%clk
0:00:04.1]} 39. Rxb6 {[%clk 0:00:53.6]} 39... d3 {[%clk 0:00:03.8]} 40. Ne3
{[%clk 0:00:49.7]} 40... d2 {[%clk 0:00:02.6]} 41. Rb5 {[%clk 0:00:43.8]} 41...
Rd5 {[%clk 0:00:02.2]} 42. Nd1 {[%clk 0:00:42.8]} 42... c4 {[%clk 0:00:01.7]}
43. bxc4 {[%clk 0:00:41]} 43... Rxb5 {[%clk 0:00:01.4]} 44. cxb5 {[%clk
0:00:40.7]} 44... Bxa2 {[%clk 0:00:02.3]} 45. b6 {[%clk 0:00:35]} 45... Bb3
{[%clk 0:00:02.3]} 46. Nc3 {[%clk 0:00:34.4]} 46... Kd6 {[%clk 0:00:01.6]} 47.
f5 {[%clk 0:00:34.1]} 47... Kc6 {[%clk 0:00:01.7]} 48. f6 {[%clk 0:00:33.5]}
48... a4 {[%clk 0:00:02.3]} 49. Kf1 {[%clk 0:00:32.6]} 49... a3 {[%clk
0:00:02.6]} 50. Ke2 {[%clk 0:00:32.3]} 50... a2 {[%clk 0:00:03.2]} 51. Nxa2
{[%clk 0:00:31]} 51... Bxa2 {[%clk 0:00:03.8]} 52. Kxd2 {[%clk 0:00:31.6]} 52...
Kxb6 {[%clk 0:00:04.4]} 53. Ke3 {[%clk 0:00:32.1]} 53... Kc6 {[%clk 0:00:04.2]}
54. Kf4 {[%clk 0:00:31.7]} 54... Kd6 {[%clk 0:00:04.9]} 55. Kxg4 {[%clk
0:00:31.9]} 55... Ke6 {[%clk 0:00:05.3]} 56. Kg5 {[%clk 0:00:32.1]} 56... Kf7
{[%clk 0:00:05.3]} 57. h4 {[%clk 0:00:30.7]} 57... Bb1 {[%clk 0:00:04.6]} 58. h5
{[%clk 0:00:30.2]} 58... Be4 {[%clk 0:00:04.7]} 59. g4 {[%clk 0:00:27.6]} 59...
Bd3 {[%clk 0:00:04.7]} 60. f4 {[%clk 0:00:27.4]} 60... Be4 {[%clk 0:00:04.7]}
61. f5 {[%clk 0:00:26.4]} 61... Bf3 {[%clk 0:00:05.2]} 62. Kf4 {[%clk
0:00:25.9]} 62... Bd1 {[%clk 0:00:04.9]} 63. Kg5 {[%clk 0:00:25.8]} 63... Be2
{[%clk 0:00:04.7]} 64. Kf4 {[%clk 0:00:23.2]} 64... Bd1 {[%clk 0:00:03]} 65. Kg5
{[%clk 0:00:22.5]} 65... Be2 {[%clk 0:00:03.6]} 66. h6 {[%clk 0:00:22.4]} 66...
Bd1 {[%clk 0:00:03.4]} 67. Kf4 {[%clk 0:00:19.3]} 67... Kxf6 {[%clk 0:00:02.5]}
68. g5+ {[%clk 0:00:19.5]} 68... Kf7 {[%clk 0:00:02.7]} 69. Ke5 {[%clk 0:00:19]}
69... Bh5 {[%clk 0:00:02.1]} 70. g6+ {[%clk 0:00:17.7]} 70... Bxg6 {[%clk
0:00:02.5]} 71. fxg6+ {[%clk 0:00:17.8]} 71... hxg6 {[%clk 0:00:01.8]} 72. Kf4
{[%clk 0:00:14.3]} 72... Kg8 {[%clk 0:00:02.1]} 73. Kg4 {[%clk 0:00:13.6]} 73...
Kh8 {[%clk 0:00:02.7]} 74. Kh4 {[%clk 0:00:13.7]} 74... Kg8 {[%clk 0:00:03.3]}
75. Kg4 {[%clk 0:00:13.5]} 75... Kh8 {[%clk 0:00:04.2]} 76. Kh4 {[%clk
0:00:13.5]} 76... Kh7 {[%clk 0:00:05.1]} 77. Kg5 {[%clk 0:00:13.5]} 77... Kg8
{[%clk 0:00:06]} 78. Kxg6 {[%clk 0:00:13.6]} 78... Kh8 {[%clk 0:00:06.9]} 79. h7
{[%clk 0:00:13.8]} 1/2-1/2

[Event "*** SCC Grand Prix: Titled Tuesday Blitz"]
[Site "Chess.com"]
[Date "2020.07.21"]
[Round "5"]
[White "CaspiIsrael"]
[Black "Shield12"]
[Result "0-1"]
[WhiteElo "2626"]
[BlackElo "2850"]
[TimeControl "180+1"]
[EndTime "10:57:05 PDT"]
[Termination "Shield12 won by checkmate"]

1. e4 {[%clk 0:03:00.9]} 1... c5 {[%clk 0:02:59.7]} 2. Nf3 {[%clk 0:02:55.7]}
2... Nc6 {[%clk 0:02:59.3]} 3. d4 {[%clk 0:02:56.1]} 3... cxd4 {[%clk
0:03:00.2]} 4. Nxd4 {[%clk 0:02:56.9]} 4... Nf6 {[%clk 0:03:00.9]} 5. Nc3 {[%clk
0:02:57]} 5... d6 {[%clk 0:03:01.5]} 6. f3 {[%clk 0:02:56.9]} 6... e5 {[%clk
0:03:01.2]} 7. Nb3 {[%clk 0:02:57.4]} 7... Be7 {[%clk 0:03:01]} 8. Be3 {[%clk
0:02:57.7]} 8... O-O {[%clk 0:03:01.6]} 9. Qd2 {[%clk 0:02:58.2]} 9... Be6
{[%clk 0:02:59.9]} 10. Nd5 {[%clk 0:02:57.1]} 10... Bxd5 {[%clk 0:02:40]} 11.
exd5 {[%clk 0:02:58]} 11... Nb8 {[%clk 0:02:40.8]} 12. Be2 {[%clk 0:02:57.3]}
12... Nbd7 {[%clk 0:02:39.3]} 13. O-O {[%clk 0:02:56.7]} 13... Qc7 {[%clk
0:02:37.3]} 14. Na5 {[%clk 0:02:51.5]} 14... Rac8 {[%clk 0:02:35.1]} 15. c4
{[%clk 0:02:49.9]} 15... Bd8 {[%clk 0:02:31.7]} 16. b4 {[%clk 0:02:49.8]} 16...
Qb8 {[%clk 0:02:31]} 17. Nb3 {[%clk 0:02:49.8]} 17... Bb6 {[%clk 0:02:27.9]} 18.
Bxb6 {[%clk 0:02:49.5]} 18... Nxb6 {[%clk 0:02:28.8]} 19. Rac1 {[%clk
0:02:42.5]} 19... Rfe8 {[%clk 0:02:28.5]} 20. Kh1 {[%clk 0:02:26.9]} 20... Qc7
{[%clk 0:02:27.3]} 21. Qe3 {[%clk 0:02:24]} 21... Qe7 {[%clk 0:02:21]} 22. a3
{[%clk 0:02:17.6]} 22... Rc7 {[%clk 0:02:20.1]} 23. Na5 {[%clk 0:02:17.2]} 23...
Rec8 {[%clk 0:02:18.5]} 24. Rcd1 {[%clk 0:02:14.8]} 24... h6 {[%clk 0:02:11.6]}
25. Rfe1 {[%clk 0:02:09.1]} 25... Qd7 {[%clk 0:02:08.8]} 26. Bd3 {[%clk
0:02:03.8]} 26... Re8 {[%clk 0:02:05]} 27. g4 {[%clk 0:01:49.5]} 27... Qd8
{[%clk 0:02:01.2]} 28. h3 {[%clk 0:01:47.3]} 28... Nfd7 {[%clk 0:01:53.1]} 29.
Kg2 {[%clk 0:01:45]} 29... Nf8 {[%clk 0:01:50.3]} 30. f4 {[%clk 0:01:40.7]}
30... e4 {[%clk 0:01:25.7]} 31. Bf1 {[%clk 0:01:15.7]} 31... f5 {[%clk
0:01:20.7]} 32. c5 {[%clk 0:01:06]} 32... Nc8 {[%clk 0:01:09.9]} 33. c6 {[%clk
0:00:55.4]} 33... b6 {[%clk 0:01:09.6]} 34. Nc4 {[%clk 0:00:54.2]} 34... Qf6
{[%clk 0:01:09.6]} 35. Qd4 {[%clk 0:00:52.8]} 35... Qf7 {[%clk 0:01:09.5]} 36.
Qf2 {[%clk 0:00:42.9]} 36... Ng6 {[%clk 0:01:07.7]} 37. Kg3 {[%clk 0:00:34.1]}
37... Rf8 {[%clk 0:01:01.5]} 38. Ne3 {[%clk 0:00:31.1]} 38... fxg4 {[%clk
0:01:00.2]} 39. Nxg4 {[%clk 0:00:31.1]} 39... Nxf4 {[%clk 0:00:57.1]} 40. Rxe4
{[%clk 0:00:30.3]} 40... Nh5+ {[%clk 0:00:34.9]} 41. Kg2 {[%clk 0:00:30.2]}
41... Qg6 {[%clk 0:00:33.5]} 42. Qe3 {[%clk 0:00:25.4]} 42... Nf6 {[%clk
0:00:30.7]} 43. Rf4 {[%clk 0:00:20.4]} 43... h5 {[%clk 0:00:28.2]} 44. Bd3
{[%clk 0:00:18.9]} 44... Qg5 {[%clk 0:00:18.2]} 45. Rf3 {[%clk 0:00:18.7]} 45...
Qxe3 {[%clk 0:00:08.6]} 46. Nxe3 {[%clk 0:00:18.4]} 46... Re7 {[%clk 0:00:08]}
47. Bf5 {[%clk 0:00:17.8]} 47... Re5 {[%clk 0:00:07.1]} 48. Be6+ {[%clk
0:00:16.8]} 48... Kh7 {[%clk 0:00:07.2]} 49. Nc4 {[%clk 0:00:16.5]} 49... Rg5+
{[%clk 0:00:06.2]} 50. Kf2 {[%clk 0:00:16.7]} 50... Ne7 {[%clk 0:00:05.7]} 51.
Nxd6 {[%clk 0:00:15.9]} 51... Nexd5 {[%clk 0:00:03.8]} 52. Bxd5 {[%clk
0:00:13.5]} 52... Rd8 {[%clk 0:00:04]} 53. c7 {[%clk 0:00:10.7]} 53... Rxd6
{[%clk 0:00:04.4]} 54. c8=Q {[%clk 0:00:10.6]} 54... Nxd5 {[%clk 0:00:03.6]} 55.
Qc2+ {[%clk 0:00:09.9]} 55... Kh6 {[%clk 0:00:03]} 56. Rd4 {[%clk 0:00:10.1]}
56... g6 {[%clk 0:00:02.6]} 57. Qd2 {[%clk 0:00:10.5]} 57... Nf6 {[%clk
0:00:01.8]} 58. h4 {[%clk 0:00:09]} 58... Ne4+ {[%clk 0:00:02]} 59. Ke3 {[%clk
0:00:06.7]} 59... Nxd2 {[%clk 0:00:02.4]} 60. hxg5+ {[%clk 0:00:07]} 60... Kxg5
{[%clk 0:00:03.1]} 61. Rd3 {[%clk 0:00:07.4]} 61... Rxd3+ {[%clk 0:00:01.8]} 62.
Kxd3 {[%clk 0:00:07.5]} 62... Nxf3 {[%clk 0:00:02.7]} 63. Ke4 {[%clk 0:00:07.9]}
63... Kg4 {[%clk 0:00:03.6]} 64. Kd5 {[%clk 0:00:07]} 64... h4 {[%clk
0:00:04.5]} 65. Kc6 {[%clk 0:00:07.9]} 65... h3 {[%clk 0:00:05.4]} 66. Kb7
{[%clk 0:00:08.6]} 66... h2 {[%clk 0:00:06.3]} 67. Kxa7 {[%clk 0:00:09.1]} 67...
h1=Q {[%clk 0:00:07.2]} 68. Kxb6 {[%clk 0:00:09.8]} 68... Qa1 {[%clk 0:00:07.7]}
69. a4 {[%clk 0:00:10.7]} 69... Nd4 {[%clk 0:00:08.1]} 70. b5 {[%clk 0:00:11.6]}
70... Qxa4 {[%clk 0:00:08.2]} 71. Kc5 {[%clk 0:00:11.9]} 71... Qxb5+ {[%clk
0:00:09.1]} 72. Kxd4 {[%clk 0:00:12.4]} 72... Kf4 {[%clk 0:00:10]} 73. Kc3
{[%clk 0:00:11.6]} 73... g5 {[%clk 0:00:10.9]} 74. Kd2 {[%clk 0:00:12.5]} 74...
g4 {[%clk 0:00:11.8]} 75. Ke1 {[%clk 0:00:12.7]} 75... g3 {[%clk 0:00:11.7]} 76.
Kd2 {[%clk 0:00:13.2]} 76... Qb3 {[%clk 0:00:11.1]} 77. Ke1 {[%clk 0:00:13.2]}
77... Qc2 {[%clk 0:00:11]} 78. Kf1 {[%clk 0:00:13.4]} 78... Qf2# {[%clk
0:00:11.9]} 0-1

[Event "*** SCC Grand Prix: Titled Tuesday Blitz"]
[Site "Chess.com"]
[Date "2020.07.21"]
[Round "5"]
[White "Zarinur"]
[Black "benko_008"]
[Result "0-1"]
[WhiteElo "2091"]
[BlackElo "2425"]
[TimeControl "180+1"]
[EndTime "10:57:11 PDT"]
[Termination "benko_008 won by checkmate"]

1. e4 {[%clk 0:03:00.9]} 1... c5 {[%clk 0:02:59.7]} 2. Nf3 {[%clk 0:03:00.6]}
2... e6 {[%clk 0:02:59.9]} 3. g3 {[%clk 0:02:59.8]} 3... d5 {[%clk 0:02:56.8]}
4. exd5 {[%clk 0:02:58.7]} 4... exd5 {[%clk 0:02:57.7]} 5. d4 {[%clk 0:02:58.8]}
5... cxd4 {[%clk 0:02:57]} 6. Nxd4 {[%clk 0:02:55.9]} 6... Bc5 {[%clk
0:02:51.8]} 7. Bg2 {[%clk 0:02:52.5]} 7... Nf6 {[%clk 0:02:47.7]} 8. O-O {[%clk
0:02:48.8]} 8... O-O {[%clk 0:02:46.5]} 9. Bg5 {[%clk 0:02:44.5]} 9... h6 {[%clk
0:02:42.5]} 10. Bxf6 {[%clk 0:02:24.4]} 10... Qxf6 {[%clk 0:02:43.4]} 11. c3
{[%clk 0:02:23.5]} 11... Rd8 {[%clk 0:02:27.9]} 12. Nb3 {[%clk 0:02:16.6]} 12...
Bb6 {[%clk 0:02:23.2]} 13. N1d2 {[%clk 0:02:14.5]} 13... Nc6 {[%clk 0:02:16]}
14. Nf3 {[%clk 0:02:12.3]} 14... Bg4 {[%clk 0:02:14.7]} 15. h3 {[%clk
0:02:09.4]} 15... Bh5 {[%clk 0:02:13.5]} 16. g4 {[%clk 0:02:06.6]} 16... Bg6
{[%clk 0:02:12]} 17. Nbd4 {[%clk 0:02:01.5]} 17... Be4 {[%clk 0:02:06.5]} 18.
Qd2 {[%clk 0:01:18.1]} 18... Na5 {[%clk 0:01:38.6]} 19. b3 {[%clk 0:01:07.6]}
19... Rac8 {[%clk 0:01:36.6]} 20. Rac1 {[%clk 0:01:04]} 20... Nc6 {[%clk
0:01:31.2]} 21. Rfd1 {[%clk 0:00:51.4]} 21... Ne7 {[%clk 0:01:28.2]} 22. g5
{[%clk 0:00:47.6]} 22... hxg5 {[%clk 0:01:22.8]} 23. Qxg5 {[%clk 0:00:48.5]}
23... Qxg5 {[%clk 0:01:20.7]} 24. Nxg5 {[%clk 0:00:47.4]} 24... Bxg2 {[%clk
0:01:20.1]} 25. Kxg2 {[%clk 0:00:48.3]} 25... Ng6 {[%clk 0:01:20.2]} 26. Nf5
{[%clk 0:00:27.4]} 26... Bc7 {[%clk 0:01:11]} 27. Nf3 {[%clk 0:00:21.7]} 27...
Nf4+ {[%clk 0:01:06.9]} 28. Kf1 {[%clk 0:00:19.3]} 28... Re8 {[%clk 0:01:00]}
29. Ne3 {[%clk 0:00:18.4]} 29... Rcd8 {[%clk 0:00:57.9]} 30. Nd4 {[%clk
0:00:16.8]} 30... a6 {[%clk 0:00:54.8]} 31. Ndf5 {[%clk 0:00:16.5]} 31... g6
{[%clk 0:00:52.5]} 32. Ng3 {[%clk 0:00:15.9]} 32... Bb6 {[%clk 0:00:44.6]} 33.
Ne2 {[%clk 0:00:09.3]} 33... Re4 {[%clk 0:00:26.8]} 34. Nxf4 {[%clk 0:00:08.1]}
34... Rxf4 {[%clk 0:00:27.1]} 35. Kg2 {[%clk 0:00:06.1]} 35... d4 {[%clk
0:00:20.2]} 36. cxd4 {[%clk 0:00:04.7]} 36... Rdxd4 {[%clk 0:00:21.1]} 37. Rxd4
{[%clk 0:00:04.1]} 37... Bxd4 {[%clk 0:00:22]} 38. Nd1 {[%clk 0:00:03.1]} 38...
Bf6 {[%clk 0:00:19.8]} 39. Rc8+ {[%clk 0:00:04]} 39... Kg7 {[%clk 0:00:19.4]}
40. Rc7 {[%clk 0:00:04.6]} 40... Rb4 {[%clk 0:00:19.5]} 41. Ne3 {[%clk
0:00:02.6]} 41... Be5 {[%clk 0:00:18.6]} 42. Nd5 {[%clk 0:00:02.7]} 42... Bxc7
{[%clk 0:00:17.7]} 43. Nxb4 {[%clk 0:00:02.4]} 43... Be5 {[%clk 0:00:18.6]} 44.
Nd5 {[%clk 0:00:02.9]} 44... f5 {[%clk 0:00:17.8]} 45. f4 {[%clk 0:00:03.8]}
45... Bd4 {[%clk 0:00:16.6]} 46. Kf3 {[%clk 0:00:04.7]} 46... Kf7 {[%clk
0:00:17]} 47. Nc7 {[%clk 0:00:05.1]} 47... Ke7 {[%clk 0:00:16.5]} 48. Nd5+
{[%clk 0:00:06]} 48... Ke6 {[%clk 0:00:16]} 49. Ne3 {[%clk 0:00:06.9]} 49... Bc3
{[%clk 0:00:14.4]} 50. Nd1 {[%clk 0:00:06.4]} 50... Bd2 {[%clk 0:00:13.1]} 51.
Ke2 {[%clk 0:00:06.2]} 51... Bxf4 {[%clk 0:00:12.2]} 52. Kd3 {[%clk 0:00:07.1]}
52... Bg3 {[%clk 0:00:11]} 53. Ne3 {[%clk 0:00:06.9]} 53... g5 {[%clk
0:00:10.1]} 54. Nf1 {[%clk 0:00:05.7]} 54... Bf4 {[%clk 0:00:09.8]} 55. Kc4
{[%clk 0:00:05]} 55... Kd6 {[%clk 0:00:09.1]} 56. Kd4 {[%clk 0:00:04.7]} 56...
b5 {[%clk 0:00:08.5]} 57. Kd3 {[%clk 0:00:03]} 57... Kd5 {[%clk 0:00:08.4]} 58.
a4 {[%clk 0:00:03]} 58... b4 {[%clk 0:00:07.1]} 59. a5 {[%clk 0:00:01.8]} 59...
Kc5 {[%clk 0:00:06.9]} 60. Ne3 {[%clk 0:00:01.7]} 60... Bxe3 {[%clk 0:00:06.3]}
61. Kxe3 {[%clk 0:00:02.6]} 61... Kd5 {[%clk 0:00:05.8]} 62. Kf3 {[%clk
0:00:02.4]} 62... Kd4 {[%clk 0:00:05.4]} 63. h4 {[%clk 0:00:02.4]} 63... gxh4
{[%clk 0:00:04.9]} 64. Kf4 {[%clk 0:00:03.3]} 64... Kc3 {[%clk 0:00:05.5]} 65.
Kxf5 {[%clk 0:00:03.4]} 65... Kxb3 {[%clk 0:00:06.4]} 66. Kg4 {[%clk 0:00:03.5]}
66... Ka4 {[%clk 0:00:07.3]} 67. Kxh4 {[%clk 0:00:04.4]} 67... Kxa5 {[%clk
0:00:08.2]} 68. Kg3 {[%clk 0:00:04.7]} 68... Ka4 {[%clk 0:00:09.1]} 69. Kf3
{[%clk 0:00:05.6]} 69... b3 {[%clk 0:00:10]} 70. Ke3 {[%clk 0:00:06.5]} 70... b2
{[%clk 0:00:10.9]} 71. Kd2 {[%clk 0:00:06.6]} 71... b1=Q {[%clk 0:00:11.8]} 72.
Kc3 {[%clk 0:00:07.2]} 72... Qb4+ {[%clk 0:00:12.7]} 73. Kd3 {[%clk 0:00:06.8]}
73... Kb5 {[%clk 0:00:13.6]} 74. Ke2 {[%clk 0:00:06.2]} 74... a5 {[%clk
0:00:14.5]} 75. Ke3 {[%clk 0:00:06.4]} 75... a4 {[%clk 0:00:15.4]} 76. Ke2
{[%clk 0:00:06.6]} 76... a3 {[%clk 0:00:16.3]} 77. Ke3 {[%clk 0:00:07.5]} 77...
a2 {[%clk 0:00:17.2]} 78. Ke2 {[%clk 0:00:08.4]} 78... a1=Q {[%clk 0:00:18.1]}
79. Ke3 {[%clk 0:00:09.3]} 79... Qaa3+ {[%clk 0:00:19]} 80. Ke2 {[%clk
0:00:08.7]} 80... Qbb2+ {[%clk 0:00:19.9]} 81. Ke1 {[%clk 0:00:09.6]} 81...
Qaa1# {[%clk 0:00:20.8]} 0-1

[Event "*** SCC Grand Prix: Titled Tuesday Blitz"]
[Site "Chess.com"]
[Date "2020.07.21"]
[Round "5"]
[White "26andrej26"]
[Black "Spartakus1975"]
[Result "1-0"]
[WhiteElo "2532"]
[BlackElo "2639"]
[TimeControl "180+1"]
[EndTime "10:57:13 PDT"]
[Termination "26andrej26 won on time"]

1. e4 {[%clk 0:03:00.9]} 1... e6 {[%clk 0:02:59.4]} 2. d4 {[%clk 0:02:58.5]}
2... d5 {[%clk 0:02:58.1]} 3. Nc3 {[%clk 0:02:59.4]} 3... Nf6 {[%clk 0:02:56]}
4. e5 {[%clk 0:02:59.2]} 4... Nfd7 {[%clk 0:02:56.2]} 5. f4 {[%clk 0:02:59.7]}
5... c5 {[%clk 0:02:55.6]} 6. Nf3 {[%clk 0:03:00.6]} 6... Nc6 {[%clk 0:02:56.4]}
7. Be3 {[%clk 0:03:00.5]} 7... Be7 {[%clk 0:02:54.3]} 8. Qd2 {[%clk 0:02:59.7]}
8... O-O {[%clk 0:02:54.2]} 9. Be2 {[%clk 0:02:59.8]} 9... b6 {[%clk 0:02:52]}
10. Nd1 {[%clk 0:02:59.4]} 10... f6 {[%clk 0:02:51.4]} 11. exf6 {[%clk
0:02:37.8]} 11... Nxf6 {[%clk 0:02:48.9]} 12. Nf2 {[%clk 0:02:37.9]} 12... Ne4
{[%clk 0:02:43.8]} 13. Nxe4 {[%clk 0:02:37.9]} 13... dxe4 {[%clk 0:02:43.7]} 14.
Ne5 {[%clk 0:02:38.5]} 14... Nxd4 {[%clk 0:02:42.9]} 15. Bxd4 {[%clk 0:02:36]}
15... Qxd4 {[%clk 0:02:37.1]} 16. Qxd4 {[%clk 0:02:32.5]} 16... cxd4 {[%clk
0:02:36.8]} 17. O-O-O {[%clk 0:02:06.3]} 17... Bc5 {[%clk 0:02:31.8]} 18. Nc6
{[%clk 0:01:41.9]} 18... Rxf4 {[%clk 0:02:01.2]} 19. Nxd4 {[%clk 0:01:41.6]}
19... e5 {[%clk 0:01:49.4]} 20. Bc4+ {[%clk 0:01:34.4]} 20... Kh8 {[%clk
0:01:19.2]} 21. Bd5 {[%clk 0:01:32.5]} 21... exd4 {[%clk 0:01:12]} 22. Bxa8
{[%clk 0:01:31.5]} 22... e3 {[%clk 0:01:00.6]} 23. Bf3 {[%clk 0:00:52.3]} 23...
Ba6 {[%clk 0:00:54.7]} 24. Rhe1 {[%clk 0:00:45.7]} 24... g5 {[%clk 0:00:52]} 25.
a3 {[%clk 0:00:41.9]} 25... g4 {[%clk 0:00:49.3]} 26. Be2 {[%clk 0:00:41.9]}
26... Bb7 {[%clk 0:00:44.1]} 27. g3 {[%clk 0:00:40.5]} 27... Rf2 {[%clk
0:00:40.5]} 28. Bxg4 {[%clk 0:00:33.7]} 28... Be4 {[%clk 0:00:36]} 29. Re2
{[%clk 0:00:28.3]} 29... Rxe2 {[%clk 0:00:22]} 30. Bxe2 {[%clk 0:00:27.7]} 30...
a5 {[%clk 0:00:22.9]} 31. b4 {[%clk 0:00:21.2]} 31... axb4 {[%clk 0:00:23]} 32.
axb4 {[%clk 0:00:22.1]} 32... Bxb4 {[%clk 0:00:23.6]} 33. Rxd4 {[%clk
0:00:22.7]} 33... Bd2+ {[%clk 0:00:24.1]} 34. Kb2 {[%clk 0:00:15.6]} 34... Bf5
{[%clk 0:00:21.7]} 35. Rd6 {[%clk 0:00:13.1]} 35... b5 {[%clk 0:00:21.6]} 36.
Rd5 {[%clk 0:00:06.8]} 36... Be6 {[%clk 0:00:21.6]} 37. Rxb5 {[%clk 0:00:06.7]}
37... Kg7 {[%clk 0:00:22.5]} 38. Rb6 {[%clk 0:00:05.8]} 38... Bh3 {[%clk
0:00:19]} 39. c4 {[%clk 0:00:05.6]} 39... Kf7 {[%clk 0:00:18.9]} 40. Kc2 {[%clk
0:00:05.8]} 40... Bf5+ {[%clk 0:00:17.8]} 41. Kd1 {[%clk 0:00:04.2]} 41... Ke7
{[%clk 0:00:17.7]} 42. c5 {[%clk 0:00:04.2]} 42... Bd7 {[%clk 0:00:16.3]} 43.
Bd3 {[%clk 0:00:03.2]} 43... Bg4+ {[%clk 0:00:12.6]} 44. Be2 {[%clk 0:00:03.4]}
44... Be6 {[%clk 0:00:12.6]} 45. Bd3 {[%clk 0:00:01.9]} 45... Bg4+ {[%clk
0:00:12.3]} 46. Be2 {[%clk 0:00:02.6]} 46... Bf5 {[%clk 0:00:12.8]} 47. Bf3
{[%clk 0:00:02.9]} 47... Bd3 {[%clk 0:00:11.2]} 48. Be2 {[%clk 0:00:03.3]} 48...
Be4 {[%clk 0:00:10.8]} 49. Bc4 {[%clk 0:00:03.6]} 49... Bf3+ {[%clk 0:00:10.4]}
50. Be2 {[%clk 0:00:03.9]} 50... Bd5 {[%clk 0:00:11.3]} 51. Bb5 {[%clk
0:00:03.8]} 51... Be4 {[%clk 0:00:07.3]} 52. Be2 {[%clk 0:00:03.6]} 52... h5
{[%clk 0:00:07.5]} 53. Bxh5 {[%clk 0:00:02.6]} 53... Bd3 {[%clk 0:00:06.6]} 54.
Be2 {[%clk 0:00:02.9]} 54... Bf5 {[%clk 0:00:06.8]} 55. Bc4 {[%clk 0:00:03.1]}
55... Bg4+ {[%clk 0:00:06.2]} 56. Be2 {[%clk 0:00:03.4]} 56... Bf5 {[%clk
0:00:06.6]} 57. h4 {[%clk 0:00:03.3]} 57... Kd8 {[%clk 0:00:04.5]} 58. g4 {[%clk
0:00:03.2]} 58... Bd7 {[%clk 0:00:04.3]} 59. Rd6 {[%clk 0:00:03.3]} 59... Kc7
{[%clk 0:00:04.5]} 60. Rxd7+ {[%clk 0:00:03.7]} 60... Kxd7 {[%clk 0:00:04.8]}
61. Bf3 {[%clk 0:00:03.1]} 61... Bb4 {[%clk 0:00:03.4]} 62. c6+ {[%clk
0:00:02.7]} 62... Kc7 {[%clk 0:00:03]} 63. Ke2 {[%clk 0:00:03.3]} 63... Be7
{[%clk 0:00:03.4]} 64. g5 {[%clk 0:00:03]} 64... Bc5 {[%clk 0:00:03.6]} 65. h5
{[%clk 0:00:02.5]} 65... Be7 {[%clk 0:00:03.3]} 66. g6 {[%clk 0:00:02.2]} 66...
Bg5 {[%clk 0:00:03.6]} 67. g7 {[%clk 0:00:02.7]} 67... Be7 {[%clk 0:00:01.5]}
68. g8=Q {[%clk 0:00:03.6]} 68... Kd6 {[%clk 0:00:01.8]} 69. Qg6+ {[%clk
0:00:04.5]} 69... Kc5 {[%clk 0:00:02]} 70. Qd3 {[%clk 0:00:05.4]} 70... Kb4
{[%clk 0:00:02.1]} 71. Qxe3 {[%clk 0:00:06.3]} 71... Bc5 {[%clk 0:00:02.7]} 72.
Qe4+ {[%clk 0:00:07]} 72... Ka5 {[%clk 0:00:02.3]} 73. c7 {[%clk 0:00:07.9]}
73... Bd4 {[%clk 0:00:02.9]} 74. Qxd4 {[%clk 0:00:08.2]} 74... Ka6 {[%clk
0:00:02.6]} 75. c8=Q+ {[%clk 0:00:08.2]} 75... Ka5 {[%clk 0:00:03.5]} 76. Qa8+
{[%clk 0:00:08]} 76... Kb5 {[%clk 0:00:03.3]} 77. Qc6+ {[%clk 0:00:08.1]} 1-0